[Event "ESP-chT Honor Division 2022"]
[Site "Linares"]
[Date "2022.09.22"]
[Round "6.14"]
[White "Nihal Sarin"]
[Black "Gukesh D"]
[Result "1/2-1/2"]
[ECO "D38"]
[WhiteElo "2677"]
[BlackElo "2726"]
[Annotator "TA"]
[PlyCount "61"]
[EventDate "2022.09.17"]
[EventType "team-tourn"]
[EventCountry "ESP"]
[SourceTitle "playchess.com"]
[Source "ChessBase"]
[SourceQuality "1"]
[TimeControl "5400+30"]

{[%evp 16,61,28,7,23,8,11,11,8,0,12,12,0,0,13,13,14,17,10,10,10,7,9,7,17,9,10,0,12,6,10,14,24,18,32,31,31,29,34,34,38,13,10,14,15,18,11,0]} 1. d4 {[%emt 0:00:27]} Nf6 {[%emt 0:00:47]} 2. Nf3 {[%emt 0:00:06]} d5 {[%emt 0:00:47]} 3. c4 {[%emt 0:00:06]} e6 {[%emt 0:00:32]} 4. Nc3 {[%emt 0:00:06]} Bb4 {[%emt 0:01:32]} 5. Bg5 {[%emt 0:00:09]} h6 {[%emt 0:01:29]} 6. Bxf6 {[%emt 0:00:06]} Qxf6 {[%emt 0:00:05]} 7. e3 {[%emt 0:00:04]} O-O {[%emt 0:01:42]} 8. Rc1 {[%emt 0:00:06]} dxc4 {[%emt 0:03:06]} 9. Bxc4 {[%emt 0:00:13]} c5 {[%emt 0:00:56] D38: Queen's Gambit Declined: Ragozin Defence (4 Nf3 Bb4).} 10. dxc5 {[%emt 0:00:24]} (10. Qb3 {seems wilder.} cxd4 11. Qxb4 Nc6 12. Qa3) 10... Nd7 {[%emt 0:01:51]} 11. O-O {[%emt 0:00:24]} Nxc5 {[%emt 0:07:27]} 12. Nb5 {[%emt 0:00:23] [#] Hoping for a3.} Rd8 {[%emt 0:15:47]} (12... Qxb2 $2 13. Rb1 Qf6 14. Rxb4 $18) 13. Qc2 {[%emt 0:04:12] Strongly threatening a3.} a6 {[%emt 0:07:44]} 14. Nbd4 {[%emt 0:02:16] a3 is the strong threat.} Ba5 {[%emt 0:05:53]} 15. Be2 {[%emt 0:31:03]} Bb6 {[%emt 0:02:23]} 16. b4 {[%emt 0:00:09]} Nd7 {[%emt 0:00:11][%cal Bc5d7,Bd7f6,Bf6d5][%mdl 32]} 17. Nb3 {[%emt 0:00:34]} Qe7 {[%emt 0:02:47]} 18. a3 {[%emt 0:00:10]} Nf6 {[%emt 0:01:38]} 19. Ne5 {[%emt 0:05:36]} Bd7 {[%emt 0:01:02]} 20. Nxd7 {[%emt 0:01:12]} Rxd7 {[%emt 0:00:33]} 21. Rfd1 {[%emt 0:06:00][%cal Bf1d1,Bd1d3,Bd3c3][%mdl 32]} Nd5 {[%emt 0:03:20][%cal Od5e3] [#]} 22. Rd3 $146 {[%emt 0:14:58]} ({Predecessor:} 22. e4 Rc7 23. Qb2 Rxc1 24. Rxc1 Nf4 25. Bf1 Rd8 26. g3 Nd3 27. Bxd3 Rxd3 {½-½ (27) Wolter,U-Semmler,J DESC email 2015}) 22... Rc7 {[%emt 0:01:09]} 23. Qd2 {[%emt 0:02:54]} Rac8 {[%emt 0:01:59]} 24. Rxc7 {[%emt 0:01:10]} Rxc7 {[%emt 0:00:05]} 25. Bf3 {[%emt 0:00:58]} Nf6 $1 {[%emt 0:06:43]} 26. g3 {[%emt 0:03:15]} Nd7 {[%emt 0:02:27]} 27. Rc3 {[%emt 0:03:58]} Ne5 {[%emt 0:01:20]} 28. Be2 {[%emt 0:00:04]} Qd7 {[%emt 0:06:56] The position is equal.} 29. Qxd7 {[%emt 0:04:16]} Nxd7 {[%emt 0:00:05]} 30. Rxc7 {[%emt 0:00:55]} Bxc7 {[%emt 0:00:01]} 31. Nc5 {[%emt 0:01:21] Weighted Error Value: White=0.03 (flawless) /Black=0.03 (flawless)} 1/2-1/2

[Event "ESP-chT Honor Division 2022"]
[Site "Linares"]
[Date "2022.09.22"]
[Round "6.15"]
[White "Santos Ruiz, Miguel"]
[Black "Hakobyan, Aram"]
[Result "0-1"]
[ECO "B13"]
[WhiteElo "2581"]
[BlackElo "2611"]
[Annotator "TA"]
[PlyCount "68"]
[EventDate "2022.09.17"]
[EventType "team-tourn"]
[EventCountry "ESP"]
[SourceTitle "playchess.com"]
[Source "ChessBase"]
[SourceQuality "1"]
[TimeControl "5400+30"]

{[%evp 9,68,6,41,27,29,25,36,35,32,22,26,6,14,5,37,20,22,8,29,34,41,-10,34,-7,-24,-11,73,-42,-47,-36,-44,-179,-166,-166,-168,-284,-277,-248,-268,-254,-193,-412,-408,-508,-509,-568,-542,-29959,-29961,-29960,-29961,-29958,-29960,-7016,-12817,-5489,-5489,-5489,-764,-5489,-5489]} 1. e4 {[%emt 0:00:03]} c6 {[%emt 0:00:09]} 2. d4 {[%emt 0:00:04]} d5 {[%emt 0:00:15]} 3. exd5 {[%emt 0:00:02]} cxd5 {[%emt 0:00:11]} 4. Nf3 {[%emt 0:00:04]} Nc6 {[%emt 0:01:48]} 5. c3 {[%emt 0:00:52]} e6 {[%emt 0:01:39]} 6. Bd3 {[%emt 0:01:28] B13: Caro-Kann: Exchange Variation and Panov-Botvinnik Attack.} Bd6 {[%emt 0:00:09]} 7. O-O {[%emt 0:00:06]} Nge7 {[%emt 0:00:09]} 8. Re1 {[%emt 0:00:05] White is slightly better.} O-O {[%emt 0:00:13]} 9. a4 {[%emt 0:00:32]} a6 {[%emt 0:07:01] [#]} 10. Na3 $146 {[%emt 0:02:09]} ({Predecessor:} 10. h3 Ng6 11. Nbd2 Bd7 12. b4 Qc7 13. Bb2 Rfe8 14. Nb3 a5 15. b5 Nce7 16. Rc1 {1-0 (66) Murphy,C (2404)-Tabatabaei,M (2664) Chennai 2022}) 10... f6 {[%emt 0:03:43]} 11. c4 {[%emt 0:07:42]} Kh8 {[%emt 0:06:08]} 12. Bd2 {[%emt 0:01:26]} Bc7 {[%emt 0:05:30]} 13. Bc3 {[%emt 0:12:08]} e5 {[%emt 0:17:40]} 14. dxe5 {[%emt 0:13:01]} d4 {[%emt 0:00:22] [#]} 15. Bd2 {[%emt 0:00:38]} (15. Nxd4 $1 $14 Nxd4 16. exf6 Rxf6 17. Be4 (17. Rxe7 $2 Qxe7 18. Bxd4 Bxh2+ 19. Kf1 Rh6 $19)) 15... fxe5 {[%emt 0:06:45]} 16. b4 {[%emt 0:04:40] Strongly threatening b5.} (16. Ng5 $5 {[%cal Rg5h7]} h6 17. b4 $11) 16... Bg4 $1 {[%emt 0:12:56]} 17. Be4 {[%emt 0:02:33]} Qd7 {[%emt 0:04:52]} (17... d3 $11 {keeps the balance.}) 18. Qb3 {[%emt 0:10:46]} (18. b5 $16) 18... d3 $1 $15 {[%emt 0:05:57] Threatens to win with ...Bxf3.} 19. Re3 {[%emt 0:08:34]} Bxf3 {[%emt 0:02:06]} 20. Bxf3 {[%emt 0:00:58] [#] White does not recover from this.} (20. Rxf3 $15 Rxf3 21. gxf3) 20... Rxf3 $1 $19 {[%emt 0:04:51][%mdl 512]} 21. Rxf3 {[%emt 0:01:57] [#]} e4 {[%emt 0:00:15]} 22. Rh3 {[%emt 0:00:34]} (22. Re3 {only move.} Bf4 23. Qb2 Bxe3 24. fxe3) 22... Nd4 {[%emt 0:00:35]} 23. Qd1 {[%emt 0:00:17]} Ne2+ {[%emt 0:00:14][%mdl 1024] Black has strong compensation. Pair of Knights!} 24. Kh1 {[%emt 0:00:32]} Rf8 $40 {[%emt 0:00:32][%mdl 128] Black is out for blood.} 25. Be3 {[%emt 0:02:02]} (25. Qe1) 25... Be5 {[%emt 0:00:41]} 26. Ra2 {[%emt 0:00:44]} Qg4 {[%emt 0:04:13][%cal Oe2g3] White must now prevent ...Ng3+!} 27. Qf1 {[%emt 0:02:55]} Nf5 {[%emt 0:02:50]} 28. Bc5 {[%emt 0:02:25] [#]} Nfg3+ $1 {[%emt 0:02:58][%mdl 512]} 29. hxg3 {[%emt 0:00:06] [#]} (29. Rxg3 Nxg3+) 29... Nxg3+ $1 {[%emt 0:00:04][%mdl 512]} 30. Rxg3 {[%emt 0:00:10]} Bxg3 {[%emt 0:00:04][%mdl 64] Pin} 31. Kg1 {[%emt 0:00:32] [#]} Qh5 $1 {[%emt 0:00:15][%csl Gg3][%cal Rh5h2] Black is clearly winning.} 32. fxg3 {[%emt 0:00:22]} Rxf1+ {[%emt 0:00:03]} 33. Kxf1 {[%emt 0:00:02]} Qd1+ {[%emt 0:00:05]} 34. Kf2 {[%emt 0:00:03]} d2 {[%emt 0:00:10] Weighted Error Value: White=0.61/Black=0.07 (flawless)} 0-1

[Event "ESP-chT Honor Division 2022"]
[Site "Linares"]
[Date "2022.09.22"]
[Round "6.16"]
[White "Arizmendi Martinez, Julen Luis"]
[Black "Muzychuk, Anna"]
[Result "1-0"]
[ECO "E47"]
[WhiteElo "2488"]
[BlackElo "2526"]
[Annotator "TA"]
[PlyCount "47"]
[EventDate "2022.09.17"]
[EventType "team-tourn"]
[EventCountry "ESP"]
[SourceTitle "playchess.com"]
[Source "ChessBase"]
[SourceQuality "1"]
[TimeControl "5400+30"]

{[%evp 16,47,16,19,29,16,19,15,31,50,102,115,135,118,122,115,141,118,109,63,63,58,62,66,64,69,66,71,71,71,70,71,414,407]} 1. d4 {[%emt 0:00:23]} Nf6 {[%emt 0:00:15]} 2. c4 {[%emt 0:00:45]} e6 {[%emt 0:00:16]} 3. Nc3 {[%emt 0:09:46]} Bb4 {[%emt 0:00:11]} 4. e3 {[%emt 0:00:16]} O-O {[%emt 0:00:22]} 5. Bd3 {[%emt 0:00:26]} c5 {[%emt 0:00:31]} 6. Nf3 {[%emt 0:03:35]} d5 {[%emt 0:00:37]} 7. cxd5 {[%emt 0:05:42]} cxd4 {[%emt 0:00:47]} 8. exd4 {[%emt 0:01:31]} exd5 {[%emt 0:00:25]} 9. Ne5 {[%emt 0:04:02]} Re8 {[%emt 0:01:53] B14: Caro-Kann: Panov-Botvinnik Attack with 5...e6 and 5...g6.} 10. O-O {[%emt 0:02:29]} Nc6 {[%emt 0:02:30]} 11. Bf4 {[%emt 0:14:11]} h6 {[%emt 0:12:32] [#] The position is equal.} 12. Nb5 $146 {[%emt 0:10:59] And now Nxc6 would win.} ({Predecessor:} 12. Bb5 Bd7 13. Bxc6 Bxc6 14. Nxc6 bxc6 15. Rc1 Re6 16. h3 Qa5 17. Qb3 Rae8 18. Be5 Bxc3 19. Qxc3 {½-½ (30) Prusikin,M (2516)-Bogner,S (2589) Switzerland 2018}) 12... Re7 {[%emt 0:17:20] [#]} (12... Re6 $14) 13. Rc1 $1 $16 {[%emt 0:10:46] Strongly threatening Rxc6.} a6 {[%emt 0:12:45]} 14. Rxc6 {[%emt 0:08:07]} ({But not} 14. Nxc6 $6 bxc6 15. Nc3 Bd6 $11) 14... bxc6 {[%emt 0:00:18]} 15. Nxc6 {[%emt 0:00:37] Pair of Knights!} Qb6 {[%emt 0:00:12]} 16. Nxe7+ {[%emt 0:03:23]} Bxe7 {[%emt 0:00:02]} 17. Qe2 {[%emt 0:08:19]} (17. Nc7 $16 Ra7 18. Qc2) 17... Bd8 $14 {[%emt 0:06:23]} 18. Nc3 {[%emt 0:01:05][%cal Oc3d5] [#] Hoping for Nxd5! White is much more active.} Qxd4 {[%emt 0:07:54]} 19. Be5 $40 {[%emt 0:03:59][%mdl 128] White is up to no good.} Qg4 {[%emt 0:00:03]} 20. Bxf6 {[%emt 0:01:18][%cal Re2e8]} Qxe2 {[%emt 0:00:20]} 21. Bxe2 {[%emt 0:00:18]} Bxf6 {[%emt 0:05:10]} 22. Nxd5 {[%emt 0:00:04]} Bxb2 {[%emt 0:02:50]} 23. Rb1 $1 {[%emt 0:02:37]} Be6 $2 {[%emt 0:10:48][%mdl 8192]} (23... Bf6 $16) 24. Nb6 {[%emt 0:02:09] Weighted Error Value: White=0.03 (flawless) /Black=0.38} ({Not} 24. Rxb2 Bxd5 25. f3 Kf8 $11) 1-0

[Event "ESP-chT Honor Division 2022"]
[Site "Linares"]
[Date "2022.09.22"]
[Round "6.17"]
[White "Korneev, Oleg"]
[Black "Macias Pino, Diego"]
[Result "1-0"]
[ECO "C70"]
[WhiteElo "2460"]
[BlackElo "2381"]
[Annotator "TA"]
[PlyCount "89"]
[EventDate "2022.09.17"]
[EventType "team-tourn"]
[EventCountry "ESP"]
[SourceTitle "playchess.com"]
[Source "ChessBase"]
[SourceQuality "1"]
[TimeControl "5400+30"]

{[%evp 16,89,37,29,56,62,58,54,52,51,48,46,58,0,1,-4,0,0,0,0,0,0,0,0,9,-5,0,0,6,6,6,6,10,11,11,11,21,17,64,63,95,88,140,141,138,73,71,69,139,140,140,141,137,34,70,62,86,25,135,128,355,348,355,355,355,340,331,328,1338,1338,5666,5659,5636,5595,4132,1729]} 1. e4 {[%emt 0:00:01]} e5 {[%emt 0:00:19]} 2. Nf3 {[%emt 0:01:13]} Nc6 {[%emt 0:00:09]} 3. Bb5 {[%emt 0:00:02][%cal Bf1b5,Bb5a4,Ba4b3][%mdl 32]} a6 {[%emt 0:00:23]} 4. Ba4 {[%emt 0:00:02]} b5 {[%emt 0:00:25]} 5. Bb3 {[%emt 0:00:04]} Na5 {[%emt 0:00:05]} 6. O-O {[%emt 0:00:57]} d6 {[%emt 0:00:04]} 7. d4 {[%emt 0:00:05]} exd4 {[%emt 0:00:06] 7...exd4 is better than 7...Nxb3.} 8. Nxd4 {[%emt 0:00:09]} Bb7 {[%emt 0:00:21]} 9. Bd2 {[%emt 0:00:14]} Nxb3 {[%emt 0:01:53] C70: Ruy Lopez: 3...a6 4 Ba4, Norwegian and Delayed Schliemann.} 10. Nxb3 {[%emt 0:00:02]} Nf6 {[%emt 0:01:58]} 11. Na5 {[%emt 0:00:30]} Qc8 {[%emt 0:00:08] White is slightly better.} 12. Re1 {[%emt 0:00:37] Threatens to win with e5.} Be7 {[%emt 0:05:34]} 13. Nxb7 {[%emt 0:03:25]} Qxb7 {[%emt 0:00:01]} 14. Nc3 {[%emt 0:00:04] [#]} ({White should play} 14. e5 $1 $14 dxe5 15. Rxe5) 14... O-O $146 {[%emt 0:01:33]} ({Predecessor:} 14... c6 15. Ne2 O-O 16. Ng3 Rfe8 17. Nf5 Bf8 18. Qf3 c5 19. Bc3 Re6 20. Nh6+ Kh8 21. Nxf7+ Qxf7 22. e5 Rae8 23. exf6 Rxe1+ 24. Rxe1 Rxe1+ 25. Bxe1 Qxf6 {½-½ (25) Beveridge,C (2143)-Kuitert,C (2156) ICCF email 2018}) 15. a3 {[%emt 0:14:06]} Rfe8 {[%emt 0:03:05]} 16. Bf4 {[%emt 0:15:38]} Bf8 {[%emt 0:03:32][%cal Rf6e4]} 17. Qd3 {[%emt 0:05:24]} Re6 {[%emt 0:02:37]} 18. f3 {[%emt 0:07:37]} Rae8 {[%emt 0:01:49][%cal Od6d5]} 19. Bg3 {[%emt 0:00:13]} g6 {[%emt 0:01:19]} 20. Nd5 {[%emt 0:09:04]} (20. Rad1 {seems wilder.} c6 21. Qd2 d5 22. exd5 cxd5 23. Qd4) 20... Nxd5 {[%emt 0:07:36]} (20... Nh5 {is more complex.} 21. Bf2 c6 22. Nc3 Bg7) 21. Qxd5 {[%emt 0:02:35]} Qxd5 {[%emt 0:12:19]} 22. exd5 {[%emt 0:00:11]} Rxe1+ {[%emt 0:02:02]} 23. Rxe1 {[%emt 0:00:11][%mdl 4096] Endgame KRB-KRB} Rc8 {[%emt 0:15:59]} 24. Kf1 {[%emt 0:04:03]} Bg7 {[%emt 0:00:30]} 25. c3 {[%emt 0:01:03]} a5 {[%emt 0:04:25]} 26. Ke2 {[%emt 0:02:30]} b4 {[%emt 0:07:54]} (26... f5 $11 {was preferrable.}) 27. Kd3 $14 {[%emt 0:06:54]} bxa3 {[%emt 0:04:32]} 28. bxa3 {[%emt 0:00:22]} Rb8 {[%emt 0:00:03]} (28... Kf8 $142) 29. Re7 $16 {[%emt 0:04:04]} Rc8 {[%emt 0:00:14]} 30. a4 {[%emt 0:02:39]} (30. Re4 $142 $1) 30... Kf8 {[%emt 0:04:35]} 31. Re4 {[%emt 0:01:29] White is more active.} Rb8 {[%emt 0:00:25]} (31... Bf6 $14) 32. Rc4 {[%emt 0:00:15]} Rb7 {[%emt 0:00:20]} 33. Rc6 {[%emt 0:00:13]} Ke7 {[%emt 0:10:34]} 34. Ra6 {[%emt 0:01:59]} (34. Kc2 $1 $16) 34... Rb2 {[%emt 0:01:35]} 35. Rxa5 {[%emt 0:01:07]} Rxg2 {[%emt 0:00:02]} 36. Ra8 {[%emt 0:00:12]} (36. Ra7 $16 Kd7 37. Ra8) 36... g5 {[%emt 0:03:10] [#]} (36... Be5 $1 $11) 37. a5 $1 {[%emt 0:00:50][%cal Ba4a5,Ba5a6,Ba6a7][%mdl 32] aiming for a6.} Rg1 $2 {[%emt 0:00:34] Loses the game.} (37... Ra2 $16 {might work better.}) 38. a6 $18 {[%emt 0:00:52]} Rc1 {[%emt 0:00:20]} 39. a7 {[%emt 0:14:04]} Rxc3+ {[%emt 0:00:10]} 40. Kd2 {[%emt 0:01:43]} Ra3 {[%emt 0:00:52] [#] ...Bd4 is the strong threat.} 41. Bf2 {[%emt 0:00:06] Prevents Bd4.} ({Less strong is} 41. Rg8 Rxa7 42. Rxg7 h6 $16) 41... Rxf3 $2 {[%emt 0:02:16]} (41... Ra2+ 42. Ke1 Ra1+ 43. Ke2 Ra2+ 44. Kf1 Be5) 42. Be3 {[%emt 0:02:19] Strongly threatening Rg8. White is clearly winning.} Rh3 {[%emt 0:01:26]} 43. Bxg5+ {[%emt 0:01:19]} Bf6 {[%emt 0:00:23]} 44. Bxf6+ {[%emt 0:00:37][%mdl 64] Deflection} Kxf6 {[%emt 0:00:08]} 45. Re8 {[%emt 0:00:06] Weighted Error Value: White=0.14 (very precise) /Black=0.26 (precise)} 1-0

[Event "ESP-chT Honor Division 2022"]
[Site "Linares"]
[Date "2022.09.22"]
[Round "6.19"]
[White "Kryvoruchko, Yuriy"]
[Black "Fedoseev, Vladimir"]
[Result "0-1"]
[ECO "B51"]
[WhiteElo "2669"]
[BlackElo "2685"]
[Annotator "TA"]
[PlyCount "128"]
[EventDate "2022.09.17"]
[EventType "team-tourn"]
[EventCountry "ESP"]
[SourceTitle "playchess.com"]
[Source "ChessBase"]
[SourceQuality "1"]
[TimeControl "5400+30"]

{[%evp 17,128,18,20,22,24,29,24,25,25,30,29,38,22,0,16,28,19,-10,-17,-8,-11,0,0,0,-3,-19,-25,-29,-10,-21,-21,-15,-22,-17,-35,-22,-26,-20,-24,-24,-17,-22,-18,-25,-18,-17,-18,-40,-43,-39,0,-8,-8,-13,-8,-63,-63,-63,-63,-63,-63,-63,-63,-63,-33,-223,-223,-223,-223,-223,-223,-223,-223,-223,-218,-218,-218,-218,-218,-352,-337,-763,-759,-697,-672,-844,-670,-910,-896,-825,-818,-29969,-29970,-29973,-29974,-29973,-29975,-29974,-29976,-29976,-29977,-29977,-29978,-29978,-29979,-29979,-29980,-29980,-29981,-29981,-29982,-29982,-29983]} 1. e4 {[%emt 0:00:03]} c5 {[%emt 0:02:42]} 2. Nf3 {[%emt 0:00:07]} d6 {[%emt 0:00:07]} 3. Bb5+ {[%emt 0:00:25]} Nc6 {[%emt 0:01:25]} 4. O-O {[%emt 0:00:18]} Bd7 {[%emt 0:00:16]} 5. Re1 {[%emt 0:00:20]} Nf6 {[%emt 0:00:21]} 6. c3 {[%emt 0:01:13]} a6 {[%emt 0:00:14]} 7. Bf1 {[%emt 0:00:10]} Bg4 {[%emt 0:00:21]} 8. d4 {[%emt 0:00:33]} cxd4 {[%emt 0:00:11]} 9. cxd4 {[%emt 0:00:03]} d5 {[%emt 0:00:59]} 10. Nc3 {[%emt 0:02:41] B51: Sicilian: Moscow Variation (3 Bb5+) without 3...Bd7.} e6 {[%emt 0:05:36]} 11. exd5 {[%emt 0:01:43]} Nxd5 {[%emt 0:00:14]} 12. h3 {[%emt 0:00:07] White has an edge.} Bxf3 {[%emt 0:00:11]} 13. Qxf3 {[%emt 0:00:05]} Bb4 {[%emt 0:00:16]} 14. Rd1 {[%emt 0:08:36] [#]} Nce7 $146 {[%emt 0:00:09][%cal Bc6e7,Be7f5,Bf5d6][%mdl 32]} ({Predecessor:} 14... O-O 15. Nxd5 exd5 16. g3 Qd7 17. a3 Be7 18. Be3 Na5 19. Bd2 Nc6 20. Bg2 Rfd8 {½-½ (48) Boehme,S (2539)-Cozza,S (2416) Remote email 2012}) 15. Ne4 {[%emt 0:09:57]} (15. Bd2 {keeps more tension.} Bd6 16. Bd3 O-O 17. Qe4) 15... Nf5 {[%emt 0:07:47]} 16. a3 {[%emt 0:02:37]} Be7 {[%emt 0:00:57]} 17. b4 {[%emt 0:14:25]} O-O {[%emt 0:01:06]} 18. Bb2 {[%emt 0:00:04]} Nd6 {[%emt 0:06:45]} 19. Nc3 {[%emt 0:02:33]} Nxc3 {[%emt 0:05:50]} 20. Bxc3 {[%emt 0:00:04]} Bf6 $1 {[%emt 0:00:10]} 21. d5 {[%emt 0:02:59]} e5 {[%emt 0:00:29]} ({But not} 21... Bxc3 22. Qxc3 Rc8 23. Qd4 $11) 22. Rac1 {[%emt 0:00:14]} Bg5 {[%emt 0:02:31]} 23. Rc2 {[%emt 0:03:11]} Rc8 {[%emt 0:01:02]} 24. Qe2 {[%emt 0:06:29]} Re8 {[%emt 0:08:55]} 25. Bb2 {[%emt 0:01:01]} Rxc2 {[%emt 0:03:36]} 26. Qxc2 {[%emt 0:00:05]} f5 {[%emt 0:00:36]} 27. a4 {[%emt 0:07:34][%cal Ba3a4,Ba4a5][%mdl 32]} e4 {[%emt 0:07:19]} 28. Bd4 {[%emt 0:00:06]} Bf6 {[%emt 0:00:57]} 29. Bc5 {[%emt 0:09:53]} Be5 {[%emt 0:05:04]} 30. a5 {[%emt 0:01:39]} Qg5 {[%emt 0:01:02]} 31. Qa4 {[%emt 0:05:25]} Re7 {[%emt 0:01:44]} 32. b5 {[%emt 0:01:53]} axb5 {[%emt 0:00:16]} 33. Bxb5 {[%emt 0:03:01]} h5 {[%emt 0:09:56]} (33... Rc7 $5 {[%cal Rc7c5]} 34. a6 bxa6 $11) 34. a6 {[%emt 0:01:15]} bxa6 {[%emt 0:01:40]} 35. Qxa6 {[%emt 0:00:02]} Qg6 {[%emt 0:01:20]} 36. Bxd6 {[%emt 0:01:58]} (36. Qb6 $11 Rb7 37. Qd8+ Kh7 38. Bc6) 36... Bxd6 $15 {[%emt 0:02:25]} 37. Qc8+ {[%emt 0:00:04]} Kh7 {[%emt 0:00:19]} 38. Bd7 {[%emt 0:00:03]} Qf6 {[%emt 0:00:56]} 39. Bxf5+ {[%emt 0:00:44]} g6 {[%emt 0:00:17]} 40. Be6 {[%emt 0:00:05]} Rc7 {[%emt 0:00:18][%mdl 1024] Black has compensation.} (40... Ra7 $5 {[%cal Ra7a1]} 41. Qc4 Ra1 $17) 41. Qe8 {[%emt 0:01:51] This move loses the game for White.} ({White has to play} 41. Qa8 $1 $15) 41... Ra7 $1 $19 {[%emt 0:05:33]} 42. Rf1 {[%emt 0:03:37] [#]} h4 $1 $40 {[%emt 0:02:48][%mdl 128] White must now prevent ...Qf4. Black attacks with force.} 43. Bg8+ {[%emt 0:00:05]} Kg7 {[%emt 0:00:05] ( -> ...Qf4)} 44. Qxe4 {[%emt 0:05:57]} (44. Be6 Qe5 45. g3 hxg3 46. Qg8+ Kh6 47. Rd1 g2) 44... Kxg8 {[%emt 0:00:08]} 45. Qe6+ {[%emt 0:00:12]} Rf7 {[%emt 0:00:07]} 46. Qxf6 {[%emt 0:00:56]} Rxf6 {[%emt 0:00:02][%mdl 4096] Endgame KRB-KR} 47. Rc1 {[%emt 0:00:10] Inhibits Bc5.} Rf5 {[%emt 0:00:13]} 48. Rd1 {[%emt 0:00:22]} (48. Rc3 {might work better.}) 48... Kf7 {[%emt 0:00:26] And now ...Bc5 would win.} 49. Rd4 $2 {[%emt 0:00:11]} (49. g3) 49... Bc5 {[%emt 0:00:06]} 50. Rd2 {[%emt 0:00:04]} Ke7 {[%emt 0:00:11] ...Kd6 is the strong threat.} 51. Re2+ {[%emt 0:00:24]} Kd7 {[%emt 0:00:07] aiming for ...Kd6.} 52. Rd2 {[%emt 0:00:11]} Kd6 {[%emt 0:00:08]} 53. Kf1 {[%emt 0:00:04]} g5 {[%emt 0:00:45]} 54. Kg1 {[%emt 0:00:39]} Rxd5 {[%emt 0:03:14] Black mates.} 55. Rxd5+ {[%emt 0:00:04]} Kxd5 {[%emt 0:00:08] KB-K3P} 56. Kf1 {[%emt 0:00:05]} Ke4 {[%emt 0:00:12]} 57. Ke2 {[%emt 0:00:06]} Bd4 {[%emt 0:00:13]} 58. Kf1 {[%emt 0:00:05]} Kd3 {[%emt 0:01:46]} 59. Ke1 {[%emt 0:02:10]} Be5 {[%emt 0:00:17]} 60. Kf1 {[%emt 0:00:13]} Kd2 {[%emt 0:01:28]} 61. g3 {[%emt 0:00:18]} hxg3 {[%emt 0:00:27]} 62. Kg2 {[%emt 0:00:04] [#]} Ke2 $1 {[%emt 0:00:40]} ({Inferior is} 62... gxf2 63. Kxf2 Bf4 64. Kf3 $11) 63. fxg3 {[%emt 0:00:03]} Bd4 {[%emt 0:00:07]} 64. g4 {[%emt 0:01:43]} Bf2 {[%emt 0:00:06] Weighted Error Value: White=0.37/Black=0.05 (flawless)} 0-1

[Event "ESP-chT Honor Division 2022"]
[Site "Linares"]
[Date "2022.09.22"]
[Round "6.20"]
[White "Tabatabaei, M. Amin"]
[Black "Anton Guijarro, David"]
[Result "1-0"]
[ECO "E00"]
[WhiteElo "2651"]
[BlackElo "2662"]
[Annotator "TA"]
[PlyCount "87"]
[EventDate "2022.09.17"]
[EventType "team-tourn"]
[EventCountry "ESP"]
[SourceTitle "playchess.com"]
[Source "ChessBase"]
[SourceQuality "1"]
[TimeControl "5400+30"]

{[%evp 9,87,13,17,14,10,28,14,24,24,5,12,14,9,7,16,-14,15,6,14,16,19,24,16,0,0,0,31,8,14,0,9,7,14,0,0,0,0,0,16,19,20,16,16,16,23,27,52,24,31,8,7,8,16,18,27,29,43,15,15,12,85,89,145,138,256,270,321,314,333,333,319,325,331,327,360,363,29997,29998,29998,29999]} 1. d4 Nf6 2. c4 e6 3. Bf4 Bb4+ 4. Nd2 d5 5. a3 Bxd2+ 6. Bxd2 {A50: Queen's Fianchetto Defence (1 d4 Nf6 2 c4 b6).} O-O {[#]} 7. e3 $146 ({Predecessor:} 7. Rc1 Nbd7 8. Bf4 dxc4 9. Rxc4 Nd5 10. Bg3 N7f6 11. e3 Bd7 12. Bd3 Bb5 13. Rc1 Bxd3 14. Qxd3 {0-1 (34) Strotmann,K-Krause,B Schussenried 1992}) 7... b6 8. cxd5 {The position is equal.} Qxd5 9. Be2 Bb7 (9... Qxg2 $2 10. Bf3 Bb7 11. Bxg2 $18) 10. Bf3 Ne4 11. Ne2 Nd7 12. g4 Qd6 13. Ng3 $1 Nxg3 14. hxg3 Bxf3 15. Qxf3 c5 16. Rd1 Qe7 ({But not} 16... cxd4 17. Bb4 Nc5 18. exd4 $16) 17. Bc3 f6 18. dxc5 Nxc5 {[%cal Bd7c5,Bc5b7,Bb7d6,Bd6e4][%mdl 32]} 19. b4 Qb7 20. Qxb7 Nxb7 21. b5 Rfd8 22. Ke2 Nd6 23. a4 Ne4 24. Bb4 f5 25. Rxd8+ Rxd8 $11 {[%mdl 4096] Endgame KRB-KRN} 26. Rc1 {Prevents Rc8. White wants to play gxf5.} Rd7 27. f3 {[#] aiming for Rc8+.} Nf6 28. Rc8+ Kf7 29. gxf5 exf5 30. Bc3 h5 31. Bd4 Nd5 32. Kd3 Nc7 33. Kc4 Ne8 {And now ...Nd6+ would win.} 34. Be5 g5 {[#]} (34... Ke7 $11 {keeps the balance.}) 35. Rc6 $1 $16 {White is more active.} g4 ({Black should try} 35... Rd1) 36. fxg4 Re7 (36... hxg4 $16 37. Rh6 Rd8) 37. Bd4 $18 fxg4 38. Rh6 Rd7 39. Rxh5 Kg6 40. Rd5 Rc7+ 41. Kd3 Ng7 42. Rd6+ Kf5 $2 (42... Kf7 $18 43. a5 bxa5) 43. e4+ Kg5 44. Be3+ {Weighted Error Value: White=0.05 (flawless) /Black=0.34} 1-0